Cogmind - Beta 10.2 @@@ ROGUE MODE // 2021.04.02 @ 14:58:48 Player: Vexic Result: Self-destructed Performance ------------- Evolutions (1) 500 Regions Visited (2) 400 Robots Destroyed (12) 60 Value Destroyed (126) 126 Prototype IDs (3) 60 Alien Tech Used (0) 0 Bonus (0) 0 TOTAL SCORE: 1146 Bonus ------- None Cogmind --------- Core Integrity 325/400 Matter 300/300 Energy 76/140 System Corruption 0% Temperature Cool (12) Movement Flying (26) Location -9/Materials Parts ------- > --- POWER (1) -------- Light Deuterium Engine > --- PROPULSION (4) --- Improved Flight Unit Improved Flight Unit Improved Flight Unit Improved Flight Unit > --- UTILITY (2) ------ Structural Scanner Sensor Array > --- WEAPON (2) ------- Hammer > --- INVENTORY (4) ---- Hover Unit Structural Scanner Visual Processing Unit Peak State ------------ > --- POWER ------------ Light Deuterium Engine > --- PROPULSION ------- Improved Flight Unit Improved Flight Unit Improved Flight Unit Improved Flight Unit > --- UTILITY ---------- Structural Scanner Sensor Array > --- WEAPON ----------- Light Assault Rifle Hammer > --- INVENTORY -------- Hover Unit Structural Scanner Visual Processing Unit Improved EM Shotgun [Rating: 19] Favorites ----------- Power Light Ion Engine Engine Light Ion Engine Propulsion Improved Flight Unit Wheel Compact Wheel Hover Unit Hover Unit Flight Unit Improved Flight Unit Utility Structural Scanner Device Structural Scanner Processor Transport Network Coupler Weapon Light Assault Rifle Ballistic Gun Light Assault Rifle Impact Weapon Hammer Build | -11 -10 -9 ------- Run | Scr Mat Mat Slots Evolved 2 | . . 2 Power . | . . . Propulsion 2 | . . 2 Utility . | . . . Weapon . | . . . Parts Attached 21 | 4 9 8 Power 3 | 1 . 2 Engine 3 | 1 . 2 Core . | . . . Reactor . | . . . Propulsion 12 | 2 4 6 Treads . | . . . Leg . | . . . Wheel 2 | 2 . . Hover 6 | . 4 2 Flight 4 | . . 4 Utility 4 | . 4 . Device 3 | . 3 . Storage . | . . . Processor 1 | . 1 . Hackware . | . . . Protection . | . . . Artifact . | . . . Weapon 2 | 1 1 . Energy Gun . | . . . Energy Cannon . | . . . Ballistic Gun 1 | 1 . . Ballistic Cannon . | . . . Launcher . | . . . Special Weapon . | . . . Impact Weapon 1 | . 1 . Slashing Weapon . | . . . Piercing Weapon . | . . . Special Melee Weapon . | . . . Unidentified Prototypes 1 | . . 1 Parts Lost 1 | . . 1 Power . | . . . Propulsion . | . . . Utility . | . . . Weapon 1 | . . 1 Highest Loss Streak 1 | . . 1 Average Slot Usage (%) 90 | . 86 96 Engine 12 | . 14 11 Wheel 2 | . 3 . Hover 15 | . 22 5 Flight 15 | . . 35 Device 16 | . 12 22 Processor 4 | . 7 . Ballistic Gun 12 | . 14 10 Impact Weapon 10 | . 10 11 Naked Turns . | . . . Heaviest Build 10 | 4 8 10 Greatest Support 26 | 26 26 24 Greatest Overweight (x) 1 | . . 1 Average Overweight (x) . | . . . Largest Inventory Capacity 4 | 4 4 4 Average Capacity 4 | 4 4 4 Most Carried 4 | . 4 4 Average Carried 2 | . 2 3 Final Capacity 4 | 4 4 4 Final Carried 3 | . 3 3 Class Distribution -------------------- 64% | Mutant 35% | Sprinter Dominant Class ---------------- Mutant | -10/Materials Sprinter | -9/Materials Resources | -11 -10 -9 ----------- Run | Scr Mat Mat Matter Collected 432 | 232 120 80 Remotely . | . . . Salvage Created 337 | . 201 136 Parts 13 | . 8 5 Haulers Intercepted 4 | . 2 2 Recyclers Shooed . | . . . Parts Field Recycled . | . . . Retrieved Matter . | . . . Parts Self-Destructed . | . . . Prevented . | . . . Kills | -11 -10 -9 ------- Run | Scr Mat Mat Combat Hostiles Destroyed 3 | . . 3 Melee 2 | . . 2 Classes Destroyed 5 | . 4 1 Builder 2 | . 2 . Hauler 4 | . 2 2 Operator 1 | . 1 . Watcher 2 | . 2 . Swarmer 3 | . . 3 Best Kill Streak 2 | . 2 2 Combat Bots Only 2 | . . 2 Max Kills in Single Turn 1 | . 1 1 Gunslinging . | . . . Exploded . | . . . Melee 1 | . . 1 Uniques/NPCs Destroyed . | . . . Combat | -11 -10 -9 -------- Run | Scr Mat Mat Damage Taken 367 | . 147 220 Core 134 | . 59 75 Absorbed by Shields . | . . . Core Remaining (%) 88 | 100 76 . Volleys Fired 22 | . 22 . Largest 1 | . 1 . Hottest 20 | . 20 . Shots Fired 22 | . 22 . Gun 22 | . 22 . Cannon . | . . . Launcher . | . . . Special . | . . . Kinetic 22 | . 22 . Thermal . | . . . Explosive . | . . . Electromagnetic . | . . . Robot Hit Streak 11 | . 11 . Robot Miss Streak 3 | . 3 . Penetration Max . | . . . Secondary Targets . | . . . Shots Hit Robots 49 | . 30 19 Core Hits 9 | . 6 3 Critical Hits 1 | . 1 . Critical Kills . | . . . Critical Parts Destroyed 1 | . 1 . Melee Attacks 90 | . 39 51 Impact 90 | . 39 51 Slashing . | . . . Piercing . | . . . Sneak Attacks 5 | . 3 2 Combat Hostiles . | . . . Follow-up Attacks . | . . . Damage Inflicted 923 | . 544 379 Guns 143 | . 143 . Cannons . | . . . Explosions . | . . . Melee 780 | . 401 379 Ramming . | . . . Kinetic 143 | . 143 . Thermal . | . . . Explosive . | . . . Electromagnetic . | . . . Impact 780 | . 401 379 Slashing . | . . . Piercing . | . . . Highest Corruption . | . . . Average Corruption . | . . . Corruption Purged . | . . . Overload Shots . | . . . Overflow Damage 184 | . 126 58 Projectiles . | . . . Explosions . | . . . Melee 184 | . 126 58 Knockbacks 2 | . 2 . Impact 2 | . 2 . Kinetic . | . . . Secondary . | . . . Self-Inflicted Damage . | . . . Shots . | . . . Rammed . | . . . Targets Rammed . | . . . Kicked . | . . . Crushed . | . . . Highest Temperature 2 | . 2 2 Average Temperature 1 | . 1 1 Received Heat Transfer 39 | . 33 6 Siege Activations . | . . . Robots Corrupted . | . . . Combat Hostiles . | . . . Parts Fried 7 | . 4 3 Impact Corruptions 14 | . 8 6 Robots Melted . | . . . Combat Hostiles . | . . . Parts Melted . | . . . Heat Transferred . | . . . Parts Sabotaged . | . . . Parts Stolen . | . . . Parts Stripped . | . . . Power Chain Reactions . | . . . Missiles Intercepted . | . . . Alert | -11 -10 -9 ------- Run | Scr Mat Mat Peak Influence 320 | . 284 320 Initial 119 | . . 119 Average 112 | . 94 139 Maximum Alert Level 1 | . 1 1 Low Security (%) 83 | 100 90 74 Level 1 16 | . 9 25 Level 2 . | . . . Level 3 . | . . . Level 4 . | . . . Level 5 . | . . . High Security . | . . . Max Security . | . . . Squads Dispatched 4 | . 3 1 Investigation 1 | . 1 . Extermination . | . . . Reinforcement 3 | . 2 1 Assault . | . . . Garrison . | . . . Intercept . | . . . Construction Impeded . | . . . Haulers Reinforced . | . . . Stealth | -11 -10 -9 --------- Run | Scr Mat Mat Distress Signals 6 | . 1 5 Communications Jammed . | . . . Distress Signals . | . . . Times Spotted 48 | . 16 32 Peak Tracking Total 13 | . 4 13 Tactical Retreats 11 | . 3 8 Traps | -11 -10 -9 ------- Run | Scr Mat Mat Traps Triggered 1 | . 1 . Indirectly . | . . . Trap Hack Attempts . | . . . Triggered . | . . . Disarmed . | . . . Reprogrammed 5 | . 5 . Reused 1 | . 1 . Traps Extracted . | . . . Installed . | . . . Triggered 1 | . 1 . Machines | -11 -10 -9 ---------- Run | Scr Mat Mat Machines Disabled 3 | . 3 . Max in Single Turn 1 | . 1 . Machines Sabotaged . | . . . Garrisons Compromised . | . . . Overloaded Fab Kills . | . . . Fab Network Shutdowns . | . . . Hacking | -11 -10 -9 --------- Run | Scr Mat Mat Machines Accessed 12 | . 8 4 Terminals 10 | . 6 4 Fabricators . | . . . Repair Stations . | . . . Recycling Units 2 | . 2 . Scanalyzers . | . . . Garrison Access . | . . . Total Hacks 32 | . 18 14 Successful 17 | . 11 6 Failed 15 | . 7 8 Catastrophic 1 | . . 1 Database Lockouts . | . . . Manual . | . . . Terminals 28 | . 14 14 Fabricators . | . . . Repair Stations . | . . . Recycling Units 4 | . 4 . Scanalyzers . | . . . Garrison Access . | . . . Terminal Hacks 15 | . 9 6 Record 1 | . . 1 Prototype ID Bank 1 | . . 1 Emergency Access Points 3 | . 3 . Alert Level 1 | . . 1 Locate Traps 1 | . 1 . Reprogram Traps 1 | . 1 . Surveillance Status 1 | . . 1 Transport Status 1 | . 1 . Hauler Manifests 2 | . 1 1 Registered Components 1 | . 1 . Zone Layout 2 | . 1 1 Fabricator Hacks . | . . . Repair Station Hacks . | . . . Recycling Unit Hacks 2 | . 2 . Report Inventory 2 | . 2 . Scanalyzer . | . . . Garrison Access Hacks . | . . . Unauthorized Hacks . | . . . Terminals . | . . . Fabricators . | . . . Repair Stations . | . . . Recycling Units . | . . . Scanalyzers . | . . . Garrison Access . | . . . Data Cores Recovered 1 | . 1 . Used . | . . . Hacking Detections 9 | . 6 3 Full Trace Events 1 | . 1 . Feedback Events . | . . . Feedback Blocked . | . . . Robot Schematics Acquired . | . . . Robots Built . | . . . Matter . | . . . Time . | . . . Total Robot Build Rating . | . . . Part Schematics Acquired . | . . . Parts Built . | . . . Matter . | . . . Time . | . . . Total Part Build Rating . | . . . Parts Repaired . | . . . Time . | . . . Parts Recycled . | . . . Recycled Matter . | . . . Retrieved Matter . | . . . Retrieved Components . | . . . Parts Scanalyzed . | . . . Part Schematics Acquired . | . . . Parts Damaged . | . . . Bothacking | -11 -10 -9 ------------ Run | Scr Mat Mat Used RIF Installer . | . . . Robots Hacked . | . . . Non-combat . | . . . Combat . | . . . Robot Hacks Applied . | . . . Relay Couplers Released . | . . . Robots Rewired . | . . . Allies Hacked . | . . . Hacks Repelled . | . . . Allies | -11 -10 -9 -------- Run | Scr Mat Mat Total Allies . | . . . Largest Group . | . . . Highest-Rated Group . | . . . Highest-Rated Ally . | . . . Total Orders . | . . . Ally Attacks . | . . . Total Damage . | . . . Kills . | . . . Allies Corrupted . | . . . Allies Melted . | . . . Intel | -11 -10 -9 ------- Run | Scr Mat Mat Robot Analysis Total . | . . . Derelict Logs Recovered . | . . . Drone Launches . | . . . Drone Recoveries . | . . . Exploration | -11 -10 -9 ------------- Run | Scr Mat Mat Turns Passed 1289 | 28 702 559 Spaces Moved 1566 | 26 863 677 Core 3 | 3 . . Treads . | . . . Legs . | . . . Wheels 126 | 23 103 . Hover 850 | . 760 90 Flight 587 | . . 587 Fastest Speed 26 | 50 56 26 Average Speed 47 | 85 60 29 Slowest Speed 105 | 100 90 105 Overloaded Moves . | . . . Propulsion Burnouts . | . . . Robots Hopped 11 | . . 11 Cave-ins Triggered . | . . . Exploration Rate (%) 47 | 3 93 47 Regions Visited 2 Branch Regions . Pre-discovered Areas . | . . . Known Exits Taken . | . . . Unknown Exits Taken 2 | 1 1 . Scrap Searched . | . . . Spaces Dug 22 | . 11 11 Terrain Destroyed 22 | . 11 11 Melee 22 | . 11 11 Projectile . | . . . AOE . | . . . Terrain Rammed . | . . . Walls Destroyed . | . . . Machines Disabled . | . . . Actions | -11 -10 -9 --------- Run | Scr Mat Mat Total 1947 | 29 970 948 Wait 232 | . 21 211 Move 1544 | 25 862 657 Hop 9 | . . 9 Pick Up 11 | . 7 4 Fast Attach 11 | 4 4 3 Attach 7 | . 3 4 Detach 6 | . 4 2 Swap 3 | . 2 1 Drop 12 | . 6 6 Fire 22 | . 22 . Melee 90 | . 39 51 Ram . | . . . Kick . | . . . Crush . | . . . Escape Stasis . | . . . Rewire . | . . . Trap . | . . . Miscellaneous . | . . . Route ------- -11/Scrapyard -10/Materials (discovered 4 exits: *Mat x3 / [*Min]) -9/Materials (discovered 1 exit: [*Mat]) History --------- Turn | Location | Event 2 | -11/Scrapyard | Met Revision 17 16 | -11/Scrapyard | Discovered new exit (range 15) 29 | -11/Scrapyard | Entered Materials 118 | -10/Materials | Discovered new exit (range 9) 231 | -10/Materials | Discovered new exit (range 11) 265 | -10/Materials | Discovered new exit (range 6) 313 | -10/Materials | Build established: Mutant 514 | -10/Materials | Discovered new exit (range 16) 731 | -10/Materials | Entered another Materials area 731 | -9/Materials | Evolved 2 slots: Propulsion x2 1064 | -9/Materials | Discovered new exit (range 16) 1122 | -9/Materials | Build established: Sprinter 1290 | -9/Materials | Self-destructed Last Messages --------------- 01252_ S-10 Pest destroyed. 01252_ W-16 Scout sends out distress signal. 01254_ Lgt. Assault Rifle destroyed. 01257_ Destroyed Flight Unit. 01257_ S-10 Pest system corrupted by crushing effect. 01258_ S-10 Pest system terminally corrupted. 01258_ Flight Unit fried. 01275_ R-06 Scavenger collects Flight Unit. 01277_ Destroyed Flight Unit. 01277_ S-10 Pest system corrupted by crushing effect. 01278_ R-06 Scavenger collects Lgt. Assault Rifle. 01280_ Destroyed Flight Unit. 01280_ S-10 Pest system corrupted by crushing effect. 01280_ Lgt. Assault Rifle fried. 01280_ S-10 Pest destroyed. 01280_ K-01 Serf collects debris. 01282_ W-16 Scout sends out distress signal. 01283_ R-06 Scavenger collects Lgt. Assault Rifle. 01285_ K-01 Serf destroyed. [Achievement: Achiever] Map ----- +----------------------------------------------------+ | ??????????????????????????????????????? | | ??????????????????????????????????????? | | ??????????????????????????????????????? | | ??????????????????????????????????????? | | ??????????????????????????????????????? | | ??????????????????????????????????????? | | ??????????????????????????????????????? | | ??????????????????????????????????????? | | ??????????????????????????????????????? | | ??????????????????????????????????????? | | ?????????????????????????????????? ???? | | ?????????????????????????????????? ???? | | ?????????????????????????????????? ???? | | ????????????????????#########????? ???? | | ????????????????????# ???? #??? | | ????????????????????# #??? #??? | | ????????????????????# #??# #??? | | ????????????????????# #??# #??? | | ????????????????????# """"" #??# #??? | | ????????????????????# """"" #### #??? | | ?##########?????????# """"" + #??? | | # #######???# # #??? | | # # *##########+#### ###? | | # # b ## | | # """ + T = r | | # """ # @ o *%=s sg %%% ## | | ??"Y" """ # ##########+######/##### | | ???"" ## ##??????????????# # | | ??? ? ## #???????????????# !# | | ??+### ##### #???????????????# !] # | | ?????##????# #???????????????# ]] # | | ???????????# #???????????????# ] # | | ???????????# #???????????????# # | | ???????????# #???????????????###+#### | | ??????????? ?????????????????# #??? | | ??????????? Y ?????????????????# #??? | | ??????????+ #????????????????? ???? | | ??????????# #????????????????? ???? | | ??????????# #????????????????? ???? | | ??????????## ##????????????????? #### | | ???????????# ??????????????????# | | ???????????? ??????????????????# | | ?????????????????????????????????? | | ??????????????????????????????????? | | ?????????????????????????????????# """ | | ???????????????????????????????### "Y | | ???????????????????????????????# """ | | ????????????????????????????????? | | ????????????????????????????????????? | | ??????????????????????????????????????? | +----------------------------------------------------+ Best States ------------- Heat Dissipation 28 Energy Generation 14 Energy Capacity 140 Matter Stores 300 Matter Capacity 300 Sight Range 16 Robot Scan Range 10 Terrain Scan Density 10 Evasion (%) 64 Item Schematics ----------------- None Robot Schematics ------------------ None Fabricated ------------ Nothing Alien Tech Used ----------------- None Achievements -------------- Achiever Challenges ------------ None Game ------ Seed HugeHelicalDoublenader Manual? 0 Play Time 00:34:01 Cumulative 15.2 hours Start 2021.04.02 @ 14:04:48 End 2021.04.02 @ 14:58:48 Sessions 1 Manual Loads 0 Difficulty Rogue Special Mode None Game No. 31 Rogue 31 Adventurer 0 Explorer 0 Win Type - Total 0 Types 0/0/0/0/0/0/0/0/0 Lore% 17 Gallery% 22 Achievement% 25 Wizard Run 0 Options --------- ASCII 0 Keyboard 1 Movement Numpad Keybinds 0 Fullscreen 2 Font 18/Terminus Map View 76x50 Tactical HUD 1 Map Filters NONE Filters NONE Steam 1 RUN: e66beedc-8dca-42cf-8e34-9e6bc75f87a8